Workbook

Sheet Numerical
A1: The American Legion Department of Alaska
A2: Membership Report
A3: 2019-03-29
A4: Post # and Name | B4: Location | C4: 2019 | D4: 2018 | E4: Goal | F4: Diff | G4: % of Goal
A5: GM-01- Mid-Pacific | B5: Tamuning | C5: 64 | D5: 83 | E5: 84 | F5: =SUM(C5-E5) -> -20 | G5: =C5/E5 -> 0.7619047619
A6: Post 01 - Jack Henry | B6: Anchorage | C6: 538 | D6: 496 | E6: 530 | F6: 8 | G6: 1.01509434
A7: Post 02 - Valdez | B7: Valdez | C7: 18 | D7: 19 | E7: 19 | F7: -1 | G7: 0.9473684211
A8: Post 03 - Joseph T. Craig | B8: Ketchikan | C8: 167 | D8: 180 | E8: 183 | F8: -16 | G8: 0.912568306
A9: Post 04 - Pioneer | B9: Anchorage | C9: 9 | D9: 14 | E9: 15 | F9: -6 | G9: 0.6
A10: Post 05 - Seward | B10: Seward | C10: 212 | D10: 219 | E10: 228 | F10: -16 | G10: 0.9298245614
A11: Post 06 - Merlin Elmer Palmer | B11: Wrangell | C11: 44 | D11: 47 | E11: 47 | F11: -3 | G11: 0.9361702128
A12: Post 07 - Skagway | B12: Skagway | C12: 34 | D12: 35 | E12: 36 | F12: -2 | G12: 0.9444444444
A13: Post 08 - John W. Jones | B13: Cordova | C13: 6 | D13: 6 | E13: 7 | F13: -1 | G13: 0.8571428571
A14: Post 09 - Koyukuk | B14: Coldfoot | C14: 26 | D14: 28 | E14: 31 | F14: -5 | G14: 0.8387096774
A15: Post 11 - Dorman H. Baker | B15: Fairbanks | C15: 177 | D15: 210 | E15: 214 | F15: -37 | G15: 0.8271028037
A16: Post 12 - Lynn Canal | B16: Haines | C16: 91 | D16: 105 | E16: 102 | F16: -11 | G16: 0.8921568627
A17: Post 13 - Sitka | B17: Sitka | C17: 72 | D17: 86 | E17: 88 | F17: -16 | G17: 0.8181818182
A18: Post 14 - Edward Locken | B18: Petersburg | C18: 6 | D18: 7 | E18: 7 | F18: -1 | G18: 0.8571428571
A19: Post 15 - Matanuska Valley | B19: Palmer | C19: 258 | D19: 212 | E19: 241 | F19: =SUM(C19-E19) -> 17 | G19: 1.070539419
A20: Post 16 - General Buckner | B20: Homer | C20: 141 | D20: 164 | E20: 172 | F20: -31 | G20: 0.8197674419
A21: Post 17 - Robert G. Blair | B21: Kodiak | C21: 154 | D21: 192 | E21: 184 | F21: -30 | G21: 0.8369565217
A22: Post 18 - Ninilchik | B22: Ninilchik | C22: 98 | D22: 108 | E22: 112 | F22: -14 | G22: 0.875
A23: Post 20 - George H. Plumley Memorial | B23: Kenai | C23: 185 | D23: 216 | E23: 217 | F23: -32 | G23: 0.8525345622
A24: Post 21 - Aurora Borealis | B24: Anchorage | C24: 45 | D24: 57 | E24: 53 | F24: -8 | G24: 0.8490566038
A25: Post 22 - Jack Warren | B25: Delta Junction | C25: 40 | D25: 35 | E25: 39 | F25: 1 | G25: 1.025641026
A26: Post 25 - Auke Bay | B26: Auke Bay | C26: 94 | D26: 97 | E26: 102 | F26: =SUM(C26-E26) -> -8 | G26: 0.9215686275
A27: Post 26 - Prince of Wales | B27: Craig | C27: 10 | D27: 37 | E27: 33 | F27: =(C27-E27) -> -23 | G27: 0.303030303
A28: Post 27 - Gladys M. Heintz Memorial | B28: Glenallen | C28: 40 | D28: 45 | E28: 44 | F28: =SUM(C28-E28) -> -4 | G28: 0.9090909091
A29: Post 28 - Spenard | B29: Anchorage | C29: 621 | D29: 578 | E29: 614 | F29: =SUM(C29-E29) -> 7 | G29: 1.011400651
A30: Post 29 - Muldoon | B30: Anchorage | C30: 267 | D30: 289 | E30: 320 | F30: =SUM(C30-E30) -> -53 | G30: 0.834375
A31: Post 30 - Con Miller | B31: North Pole | C31: 129 | D31: 145 | E31: 142 | F31: =SUM(C31-E31) -> -13 | G31: 0.9084507042
A32: Post 33 - Peters Creek | B32: Chugiak | C32: 303 | D32: 318 | E32: 338 | F32: =(C32-E32) -> -35 | G32: 0.8964497041
A33: Post 34 - Chappie James | B33: Anchorage | C33: 45 | D33: 55 | E33: 56 | F33: =SUM(C33-E33) -> -11 | G33: 0.8035714286
A34: Post 35 - Susitna Valley | B34: Wasilla | C34: 352 | D34: 332 | E34: 343 | F34: 9 | G34: 1.026239067
A35: Post 442 - Peter Heyano | B35: Dillingham | C35: 19 | D35: 18 | E35: 21 | F35: -2 | G35: 0.9047619048
A36: Post 49 - General Claire L. Chennault | B36: Taipei - Taiwan | C36: 22 | D36: 24 | E36: 26 | F36: -4 | G36: 0.8461538462
A37: Post 57 - C.R. Huber | B37: Fairbanks | C37: 238 | D37: 261 | E37: 267 | F37: -29 | G37: 0.8913857678
A38: Post 77 - Department Headquarters | B38: Anchorage | C38: 478 | D38: 609 | E38: 746 | F38: -268 | G38: 0.6407506702
A39: Post 75 - Sterling | B39: Sterling | C39: 4 | D39: 12 | E39: 12 | F39: -8 | G39: 0.3333333333
A40: Grand Totals: | C40: 5007 | D40: 5327 | E40: =SUM(E5:E39) -> 5673 | G40: =AVERAGE(C40/E40) -> 0.882601798

Sheet %
A1: The American Legion Department of Alaska
A2: The American Legion Department of Alaska
A3: Membership Report
A4: 2019-03-29
A5: Post # and Name | B5: Location | C5: 2019 | D5: 2018 | E5: Goal | F5: Diff | G5: % of Goal
A6: Post 15 - Matanuska Valley | B6: Palmer | C6: 258 | D6: 212 | E6: 241 | F6: =SUM(C6-E6) -> 17 | G6: =C6/E6 -> 1.070539419
A7: Post 35 - Susitna Valley | B7: Wasilla | C7: 352 | D7: 332 | E7: 343 | F7: =SUM(C7-E7) -> 9 | G7: =C7/E7 -> 1.026239067
A8: Post 22 - Jack Warren | B8: Delta Junction | C8: 40 | D8: 35 | E8: 39 | F8: 1 | G8: =C8/E8 -> 1.025641026
A9: Post 01 - Jack Henry | B9: Anchorage | C9: 538 | D9: 496 | E9: 530 | F9: =SUM(C9-E9) -> 8 | G9: =C9/E9 -> 1.01509434
A10: Post 28 - Spenard | B10: Anchorage | C10: 621 | D10: 578 | E10: 614 | F10: =SUM(C10-E10) -> 7 | G10: =C10/E10 -> 1.011400651
A11: Post 02 - Valdez | B11: Valdez | C11: 18 | D11: 19 | E11: 19 | F11: =SUM(C11-E11) -> -1 | G11: =C11/E11 -> 0.9473684211
A12: Post 07 - Skagway | B12: Skagway | C12: 34 | D12: 35 | E12: 36 | F12: =SUM(C12-E12) -> -2 | G12: =C12/E12 -> 0.9444444444
A13: Post 06 - Merlin Elmer Palmer | B13: Wrangell | C13: 44 | D13: 47 | E13: 47 | F13: =SUM(C13-E13) -> -3 | G13: =C13/E13 -> 0.9361702128
A14: Post 05 - Seward | B14: Seward | C14: 212 | D14: 219 | E14: 228 | F14: =SUM(C14-E14) -> -16 | G14: =C14/E14 -> 0.9298245614
A15: Post 25 - Auke Bay | B15: Auke Bay | C15: 94 | D15: 97 | E15: 102 | F15: =SUM(C15-E15) -> -8 | G15: =C15/E15 -> 0.9215686275
A16: Post 03 - Joseph T. Craig | B16: Ketchikan | C16: 167 | D16: 180 | E16: 183 | F16: =SUM(C16-E16) -> -16 | G16: =C16/E16 -> 0.912568306
A17: Post 27 - Gladys M. Heintz Memorial | B17: Glenallen | C17: 40 | D17: 45 | E17: 44 | F17: =SUM(C17-E17) -> -4 | G17: =C17/E17 -> 0.9090909091
A18: Post 30 - Con Miller | B18: North Pole | C18: 129 | D18: 145 | E18: 142 | F18: =SUM(C18-E18) -> -13 | G18: =C18/E18 -> 0.9084507042
A19: Post 442 - Peter Heyano | B19: Dillingham | C19: 19 | D19: 18 | E19: 21 | F19: =SUM(C19-E19) -> -2 | G19: =C19/E19 -> 0.9047619048
A20: Post 33 - Peters Creek | B20: Chugiak | C20: 303 | D20: 318 | E20: 338 | F20: =(C20-E20) -> -35 | G20: =C20/E20 -> 0.8964497041
A21: Post 12 - Lynn Canal | B21: Haines | C21: 91 | D21: 105 | E21: 102 | F21: =SUM(C21-E21) -> -11 | G21: =C21/E21 -> 0.8921568627
A22: Post 57 - C.R. Huber | B22: Fairbanks | C22: 238 | D22: 261 | E22: 267 | F22: =SUM(C22-E22) -> -29 | G22: =C22/E22 -> 0.8913857678
A23: Post 18 - Ninilchik | B23: Ninilchik | C23: 98 | D23: 108 | E23: 112 | F23: =SUM(C23-E23) -> -14 | G23: =C23/E23 -> 0.875
A24: Post 08 - John W. Jones | B24: Cordova | C24: 6 | D24: 6 | E24: 7 | F24: =SUM(C24-E24) -> -1 | G24: =C24/E24 -> 0.8571428571
A25: Post 14 - Edward Locken | B25: Petersburg | C25: 6 | D25: 7 | E25: 7 | F25: -1 | G25: =C25/E25 -> 0.8571428571
A26: Post 20 - George H. Plumley Memorial | B26: Kenai | C26: 185 | D26: 216 | E26: 217 | F26: =SUM(C26-E26) -> -32 | G26: =C26/E26 -> 0.8525345622
A27: Post 21 - Aurora Borealis | B27: Anchorage | C27: 45 | D27: 57 | E27: 53 | F27: =SUM(C27-E27) -> -8 | G27: =C27/E27 -> 0.8490566038
A28: Post 49 - General Claire L. Chennault | B28: Taipei - Taiwan | C28: 22 | D28: 24 | E28: 26 | F28: =SUM(C28-E28) -> -4 | G28: =C28/E28 -> 0.8461538462
A29: Post 09 - Koyukuk | B29: Coldfoot | C29: 26 | D29: 28 | E29: 31 | F29: =SUM(C29-E29) -> -5 | G29: =C29/E29 -> 0.8387096774
A30: Post 17 - Robert G. Blair | B30: Kodiak | C30: 154 | D30: 192 | E30: 184 | F30: =SUM(C30-E30) -> -30 | G30: =C30/E30 -> 0.8369565217
A31: Post 29 - Muldoon | B31: Anchorage | C31: 267 | D31: 289 | E31: 320 | F31: =SUM(C31-E31) -> -53 | G31: =C31/E31 -> 0.834375
A32: Post 11 - Dorman H. Baker | B32: Fairbanks | C32: 177 | D32: 210 | E32: 214 | F32: =SUM(C32-E32) -> -37 | G32: =C32/E32 -> 0.8271028037
A33: Post 16 - General Buckner | B33: Homer | C33: 141 | D33: 164 | E33: 172 | F33: =SUM(C33-E33) -> -31 | G33: =C33/E33 -> 0.8197674419
A34: Post 13 - Sitka | B34: Sitka | C34: 72 | D34: 86 | E34: 88 | F34: =SUM(C34-E34) -> -16 | G34: =C34/E34 -> 0.8181818182
A35: Post 34 - Chappie James | B35: Anchorage | C35: 45 | D35: 55 | E35: 56 | F35: =SUM(C35-E35) -> -11 | G35: =C35/E35 -> 0.8035714286
A36: GM-01- Mid-Pacific | B36: Tamuning | C36: 64 | D36: 83 | E36: 84 | F36: =SUM(C36-E36) -> -20 | G36: =C36/E36 -> 0.7619047619
A37: Post 77 - Department Headquarters | B37: Anchorage | C37: 478 | D37: 609 | E37: 746 | F37: =SUM(C37-E37) -> -268 | G37: =C37/E37 -> 0.6407506702
A38: Post 04 - Pioneer | B38: Anchorage | C38: 9 | D38: 14 | E38: 15 | F38: =SUM(C38-E38) -> -6 | G38: =C38/E38 -> 0.6
A39: Post 75 - Sterling | B39: Sterling | C39: 4 | D39: 12 | E39: 12 | F39: =SUM(C39-E39) -> -8 | G39: =C39/E39 -> 0.3333333333
A40: Post 26 - Prince of Wales | B40: Craig | C40: 10 | D40: 37 | E40: 33 | F40: =(C40-E40) -> -23 | G40: =C40/E40 -> 0.303030303
A41: Grand Totals: | C41: 5007 | D41: 5327 | E41: =SUM(E6:E40) -> 5673 | G41: =AVERAGE(C41/E41) -> 0.882601798

Sheet SAL 2019
A1: Barometer 2019 as of March 29, 2019
A3: SQD. # | B3: SQUADRON NAME | C3: GOAL | D3: ACTUAL | E3: PERCENTAGE
A4: 29 | B4: MULDOON | C4: 35 | D4: 47 | E4: 134.3
A5: 28 | B5: SPENARD | C5: 135 | D5: 165 | E5: 122.2
A6: 18 | B6: NINILCHIK | C6: 61 | D6: 68 | E6: 111.5
A7: 15 | B7: MATANUSKA VALLEY | C7: 69 | D7: 72 | E7: 104.3
A8: 33 | B8: PETERS CREEK | C8: 88 | D8: 91 | E8: 103.4
A9: 57 | B9: C RUSSELL HUBER | C9: 142 | D9: 134 | E9: 94.4
A10: 35 | B10: SUSITNA VALLEY | C10: 153 | D10: 140 | E10: 91.5
A11: ************ | B11: AVERAGE***************************** | C11: 1422 | D11: 1213 | E11: 85.3
A12: 1 | B12: JACK HENRY | C12: 121 | D12: 101 | E12: 83.5
A13: 11 | B13: DORMAN H BAKER | C13: 29 | D13: 24 | E13: 82.8
A14: 17 | B14: ROBERT G BLAIR | C14: 148 | D14: 122 | E14: 82.4
A15: 20 | B15: GEORGE H PLUMLEY MEMORIAL | C15: 82 | D15: 57 | E15: 69.5
A16: 16 | B16: GENERAL BUCKNER | C16: 90 | D16: 62 | E16: 68.9
A17: 5 | B17: SEWARD | C17: 87 | D17: 54 | E17: 62.1
A18: 13 | B18: SITKA | C18: 52 | D18: 31 | E18: 59.6
A19: 3 | B19: KETCHIKAN | C19: 41 | D19: 24 | E19: 58.5
A20: 30 | B20: CON MILLER | C20: 29 | D20: 10 | E20: 34.5
A21: 12 | B21: LYNN CANAL | C21: 50 | D21: 12 | E21: 24
A22: 34 | B22: CHAPPIE JAMES | C22: 10 | D22: 0 | E22: 0
B28: DETACHMENT | C28: 1422 | D28: 1213 | E28: 85.3

Sheet AUX 2019
A1: ALA 2019 BAROMETER as of 3/29/2019
A2: UNIT NO. | B2: UNIT NAME | C2: OBJECTIVE | D2: JUNIOR | E2: SENIOR | F2: TOTAL | G2: PERCENT
A3: 0077 | B3: HEADQUARTERS | C3: 11 | D3: 0 | E3: 16 | F3: 16 | G3: =F3/C3 -> 1.454545455
A4: 0006 | B4: MERLIN ELMER PALMER | C4: 96 | D4: 18 | E4: 87 | F4: 95 | G4: =F4/C4 -> 0.9895833333
A5: 0035 | B5: SUSITNA VALLEY | C5: 229 | D5: 10 | E5: 167 | F5: 177 | G5: =F5/C5 -> 0.7729257642
A6: 0057 | B6: C. RUSSELL HUBER | C6: 278 | D6: 15 | E6: 197 | F6: 212 | G6: =F6/C6 -> 0.7625899281
A7: 0442 | B7: PETER HEYANO - DILLINGHAM | C7: 16 | D7: 1 | E7: 11 | F7: 12 | G7: 0.75
A8: 0027 | B8: GLADYS M. HEINTZ | C8: 15 | D8: 0 | E8: 10 | F8: 10 | G8: =F8/C8 -> 0.6666666667
A9: 0033 | B9: PETERS CREEK | C9: 216 | D9: 8 | E9: 128 | F9: 136 | G9: =F9/C9 -> 0.6296296296
A10: 0001 | B10: JACK HENRY | C10: 376 | D10: 6 | E10: 223 | F10: 229 | G10: =F10/C10 -> 0.6090425532
A11: 0020 | B11: GEO. H. PLUMLEY MEMORIAL | C11: 216 | D11: 12 | E11: 117 | F11: 129 | G11: =F11/C11 -> 0.5972222222
A12: 0005 | B12: SEWARD | C12: 229 | D12: 2 | E12: 133 | F12: 135 | G12: =F12/C12 -> 0.5895196507
A13: 0012 | B13: LYNN CANAL | C13: 156 | D13: 1 | E13: 88 | F13: 91 | G13: =F13/C13 -> 0.5833333333
A14: 0011 | B14: DORMAN H. BAKER | C14: 121 | D14: 3 | E14: 67 | F14: 70 | G14: =F14/C14 -> 0.5785123967
A15: 0003 | B15: KETCHIKAN | C15: 82 | D15: 1 | E15: 44 | F15: 45 | G15: =F15/C15 -> 0.5487804878
A16: 0018 | B16: NINILCHIK | C16: 157 | D16: 2 | E16: 81 | F16: 83 | G16: =F16/C16 -> 0.5286624204
A17: 0016 | B17: GENERAL BUCKNER | C17: 221 | D17: 2 | E17: 114 | F17: 116 | G17: =F17/C17 -> 0.5248868778
A18: 0029 | B18: MULDOON | C18: 166 | D18: 0 | E18: 84 | F18: 84 | G18: =F18/C18 -> 0.5060240964
A19: 0034 | B19: CHAPPIE JAMES | C19: 41 | D19: 0 | E19: 18 | F19: 18 | G19: =F19/C19 -> 0.4390243902
A20: 0015 | B20: MATANUSKA VALLEY | C20: 237 | D20: 3 | E20: 100 | F20: 103 | G20: =F20/C20 -> 0.4345991561
A21: 0028 | B21: SPENARD | C21: 436 | D21: 3 | E21: 183 | F21: 186 | G21: =F21/C21 -> 0.4266055046
A22: 0013 | B22: SITKA | C22: 116 | D22: 0 | E22: 48 | F22: 48 | G22: =F22/C22 -> 0.4137931034
A23: 0017 | B23: ROBERT G. BLAIR | C23: 251 | D23: 1 | E23: 82 | F23: 83 | G23: =F23/C23 -> 0.3306772908
A24: 0030 | B24: CON MILLER | C24: 56 | D24: 0 | E24: 17 | F24: 17 | G24: =F24/C24 -> 0.3035714286
A25: 0019 | B25: NOME | C25: 62 | D25: 0 | E25: 5 | F25: 5 | G25: =F25/C25 -> 0.08064516129
B27: TOTAL | C27: 3784 | D27: 90 | E27: 2021 | F27: 2100 | G27: =F27/C27 -> 0.5549682875
